fUSD/lending_fUSD_20240426
["ID","MTS","AMOUNT","RATE_DAILY","PERIOD"]
[323681162,1714162243372,-627.98,0.00010958,2]
[323681163,1714162243381,-500.0,0.00010958,2]
[323681164,1714162243391,-500.0,0.00010958,2]
[323681165,1714162243401,-500.0,0.00010958,2]
[323681166,1714162243410,-500.0,0.00010958,2]
[323681167,1714162243419,-500.0,0.00010958,2]
[323681168,1714162243429,-500.0,0.00010958,2]
[323681169,1714162243438,-500.48643674,0.00010958,2]
[323681170,1714162243447,-500.0,0.00010958,2]
[323681171,1714162243456,-500.0,0.00010958,2]
[323681172,1714162243466,-500.0,0.00010958,2]
[323681173,1714162243476,-500.0,0.00010958,2]
[323681174,1714162243485,-500.0,0.00010958,2]
[323681175,1714162243494,-500.0,0.00010958,2]
[323681177,1714162243503,-500.0,0.00010958,2]
[323681178,1714162243512,-3135.84,0.00010958,2]
[323681179,1714162243521,-500.0,0.00010958,2]
[323681180,1714162243530,-500.0,0.00010958,2]
[323681181,1714162243539,-611.46,0.00010958,2]
[323681182,1714162243548,-500.0,0.00010958,2]
[323681183,1714162243558,-500.0,0.00010958,2]
[323681184,1714162243568,-642.24,0.00010958,2]
[323681185,1714162243577,-500.0,0.00010958,2]
[323681186,1714162243586,-500.0,0.00010958,2]
[323681187,1714162243595,-500.0,0.00010958,2]
[323681188,1714162243605,-500.0,0.00010958,2]
[323681189,1714162243614,-500.0,0.00010958,2]
[323681190,1714162243623,-597.26,0.00010958,2]
[323681191,1714162243633,-567.24366844,0.00010958,2]
[323681192,1714162243642,-6797.08,0.00010958,2]
[323681193,1714162243651,-500.0,0.00010958,2]
[323681194,1714162243660,-500.0,0.00010958,2]
[323681195,1714162243669,-868.92,0.00010958,2]
[323681196,1714162243678,-500.0,0.00010958,2]
[323681197,1714162243687,-500.0,0.00010958,2]
[323681198,1714162243697,-2201.82,0.00010958,2]
[323681199,1714162243706,-500.0,0.00010958,2]
[323681200,1714162243716,-1594.7,0.00010958,2]
[323681201,1714162243725,-500.0,0.00010958,2]
[323681202,1714162243734,-1677.94,0.00010958,2]
[323681203,1714162243743,-500.0,0.00010958,2]
[323681204,1714162243752,-500.0,0.00010958,2]
[323681205,1714162243760,-928.55,0.00010958,2]
[323681206,1714162243769,-500.0,0.00010958,2]
[323681207,1714162243778,-338.26,0.00010958,2]
[323681208,1714162243788,-1288.34,0.00010958,2]
[323681209,1714162243797,-500.0,0.00010958,2]
[323681210,1714162243806,-2893.79,0.00010958,2]
[323681211,1714162243815,-500.0,0.00010958,2]
[323681212,1714162243824,-500.0,0.00010958,2]
[323681213,1714162243833,-500.0,0.00010958,2]
[323681214,1714162243842,-505.182449,0.00010958,2]
[323681215,1714162243851,-500.0,0.00010958,2]
[323681216,1714162243860,-2465.22,0.00010958,2]
[323681217,1714162243869,-227.97185166,0.00010958,2]
[323681218,1714162243878,-500.0,0.00010958,2]
[323681219,1714162243887,-500.0,0.00010958,2]
[323681220,1714162243896,-500.0,0.00010958,2]
[323681221,1714162243905,-3084.06,0.00010958,2]
[323681222,1714162243914,-500.0,0.00010958,2]
[323681223,1714162243923,-4861.52,0.00010958,2]
[323681224,1714162243932,-500.0,0.00010958,2]
[323681225,1714162243941,-500.0,0.00010958,2]
[323681226,1714162243951,-500.0,0.00010958,2]
[323681227,1714162243961,-500.0,0.00010958,2]
[323681228,1714162243970,-500.0,0.00010958,2]
[323681229,1714162243979,-500.0,0.00010958,2]
[323681230,1714162243988,-500.0,0.00010958,2]
[323681231,1714162243998,-500.0,0.00010958,2]
[323681232,1714162244007,-500.0,0.00010958,2]
[323681233,1714162244016,-2645.63,0.00010958,2]
[323681234,1714162244025,-1594.12,0.00010958,2]
[323681235,1714162244035,-374.91214782,0.00010958,2]
[323681236,1714162244044,-500.0,0.00010958,2]
[323681237,1714162244054,-3423.77,0.00010958,2]
[323681238,1714162244063,-500.0,0.00010958,2]
[323681239,1714162244072,-502.35856832,0.00010958,2]
[323681240,1714162244081,-6052.4,0.00010958,2]
[323681241,1714162244091,-500.0,0.00010958,2]
[323681242,1714162244101,-1542.06,0.00010958,2]
[323681243,1714162244110,-500.0,0.00010958,2]
[323681244,1714162244119,-1225.71,0.00010958,2]
[323681245,1714162244128,-521.9,0.00010958,2]
[323681246,1714162244138,-500.0,0.00010958,2]
[323681247,1714162244148,-1373.62,0.00010958,2]
[323681248,1714162244158,-1925.55,0.00010958,2]
[323681249,1714162244168,-500.0,0.00010958,2]
[323681250,1714162244178,-500.0,0.00010958,2]
[323681251,1714162244187,-500.0,0.00010958,2]
[323681252,1714162244196,-848.83,0.00010958,2]
[323681253,1714162244206,-1014.64,0.00010958,2]
[323681254,1714162244215,-500.0,0.00010958,2]
[323681255,1714162244225,-500.0,0.00010958,2]
[323681256,1714162244239,-500.0,0.00010958,2]
[323681257,1714162244248,-863.72,0.00010958,2]
[323681258,1714162244257,-629.09722311,0.00010958,2]
[323681259,1714162244267,-954.93,0.00010958,2]
[323681260,1714162244277,-1147.64,0.00010958,2]
[323681261,1714162244286,-500.0,0.00010958,2]
[323681262,1714162244295,-500.0,0.00010958,2]
[323681263,1714162244304,-500.0,0.00010958,2]
[323681264,1714162244314,-500.0,0.00010958,2]
[323681265,1714162244323,-500.0,0.00010958,2]
[323681266,1714162244332,-500.0,0.00010958,2]
[323681267,1714162244341,-500.0,0.00010958,2]
[323681268,1714162244350,-2950.25,0.00010958,2]
[323681269,1714162244359,-1368.11,0.00010958,2]
[323681270,1714162244368,-500.0,0.00010958,2]
[323681271,1714162244377,-500.0,0.00010958,2]
[323681272,1714162244387,-575.81719664,0.00010958,2]
[323681273,1714162244396,-561.57,0.00010958,2]
[323681274,1714162244405,-654.41,0.00010958,2]
[323681275,1714162244414,-500.0,0.00010958,2]
[323681276,1714162244424,-500.0,0.00010958,2]
[323681277,1714162244433,-500.0,0.00010958,2]
[323681278,1714162244442,-500.0,0.00010958,2]
[323681279,1714162244451,-877.85,0.00010958,2]
[323681280,1714162244461,-500.0,0.00010958,2]
[323681281,1714162244471,-503.22719926,0.00010958,2]
[323681282,1714162244480,-500.98604982,0.00010958,2]
[323681283,1714162244490,-1111.15,0.00010958,2]
[323681284,1714162244499,-7051.72,0.00010958,2]
[323681285,1714162244508,-2063.7,0.00010958,2]
[323681286,1714162244517,-500.0,0.00010958,2]
[323681287,1714162244526,-500.0,0.00010958,2]
[323681288,1714162244535,-240.03321496,0.00010958,2]
[323681289,1714162244544,-500.0,0.00010958,2]
[323681290,1714162244553,-500.0,0.00010958,2]
[323681291,1714162244562,-7897.86,0.00010958,2]
[323681292,1714162244572,-500.0,0.00010958,2]
[323681293,1714162244581,-500.0,0.00010958,2]
[323681294,1714162244590,-505.29,0.00010958,2]
[323681295,1714162244599,-500.0,0.00010958,2]
[323681296,1714162244609,-500.0,0.00010958,2]
[323681297,1714162244618,-1005.69,0.00010958,2]
[323681298,1714162244627,-500.0,0.00010958,2]
[323681299,1714162244636,-500.0,0.00010958,2]
[323681300,1714162244646,-4144.22,0.00010958,2]
[323681301,1714162244655,-501.97,0.00010958,2]
[323681302,1714162244664,-507.73152609,0.00010958,2]
[323681303,1714162244673,-500.0,0.00010958,2]
[323681304,1714162244682,-500.0,0.00010958,2]
[323681305,1714162244691,-500.0,0.00010958,2]
[323681306,1714162244701,-500.0,0.00010958,2]
[323681307,1714162244710,-3339.38,0.00010958,2]
[323681308,1714162244719,-500.0,0.00010958,2]
[323681309,1714162244728,-829.72,0.00010958,2]
[323681310,1714162244737,-8031.44,0.00010958,2]
[323681311,1714162244747,-2145.26,0.00010958,2]
[323681312,1714162244756,-500.0,0.00010958,2]
[323681313,1714162244765,-500.0,0.00010958,2]
[323681314,1714162244774,-500.0,0.00010958,2]
[323681315,1714162244783,-502.51017506,0.00010958,2]
[323681316,1714162244792,-500.0,0.00010958,2]
[323681317,1714162244802,-500.0,0.00010958,2]
[323681318,1714162244811,-2213.2,0.00010958,2]
[323681319,1714162244820,-500.0,0.00010958,2]
[323681320,1714162244829,-2550.13,0.00010958,2]
[323681321,1714162244838,-500.0,0.00010958,2]
[323681322,1714162244848,-13673.84,0.00010958,2]
[323681323,1714162244857,-1302.63,0.00010958,2]
[323681324,1714162244866,-500.0,0.00010958,2]
[323681325,1714162244875,-231.39194801,0.00010958,2]
[323681326,1714162244884,-500.0,0.00010958,2]
[323681327,1714162244893,-3483.45,0.00010958,2]
[323681328,1714162244902,-500.0,0.00010958,2]
[323681329,1714162244911,-915.24,0.00010958,2]
[323681330,1714162244920,-500.0,0.00010958,2]
[323681331,1714162244929,-500.0,0.00010958,2]
[323681332,1714162244938,-500.0,0.00010958,2]
[323681333,1714162244947,-2245.37,0.00010958,2]
[323681334,1714162244956,-500.0,0.00010958,2]
[323681335,1714162244968,-500.6977463,0.00010958,2]
[323681336,1714162244976,-500.0,0.00010958,2]
[323681337,1714162244985,-1189.39,0.00010958,2]
[323681338,1714162244994,-2476.65,0.00010958,2]
[323681339,1714162245003,-500.0,0.00010958,2]
[323681340,1714162245013,-500.0,0.00010958,2]
[323681341,1714162245022,-500.0,0.00010958,2]
[323681342,1714162245032,-500.0,0.00010958,2]
[323681343,1714162245041,-1338.01,0.00010958,2]
[323681344,1714162245050,-500.0,0.00010958,2]
[323681345,1714162245059,-2013.43,0.00010958,2]
[323681346,1714162245068,-634.76,0.00010958,2]
[323681347,1714162245077,-500.0,0.00010958,2]
[323681348,1714162245086,-2115.07,0.00010958,2]
[323681349,1714162245095,-4419.33,0.00010958,2]
[323681350,1714162245104,-500.0,0.00010958,2]
[323681351,1714162245113,-505.69626416,0.00010958,2]
[323681352,1714162245122,-1136.93,0.00010958,2]
[323681353,1714162245131,-500.0,0.00010958,2]
[323681354,1714162245141,-1875.76,0.00010958,2]
[323681355,1714162245150,-1208.19,0.00010958,2]
[323681356,1714162245159,-1208.19,0.00010958,2]
[323681357,1714162245168,-1208.19,0.00010958,2]
[323681358,1714162245178,-500.0,0.00010958,2]
[323681359,1714162245187,-1208.19,0.00010958,2]
[323681360,1714162245196,-500.0,0.00010958,2]
[323681361,1714162245205,-1101.56,0.00010958,2]
[323681362,1714162245216,-500.0,0.00010958,2]
[323681363,1714162245225,-500.0,0.00010958,2]
[323681364,1714162245237,-500.0,0.00010958,2]
[323681365,1714162245246,-500.0,0.00010958,2]
[323681366,1714162245255,-500.0,0.00010958,2]
[323681367,1714162245264,-500.0,0.00010958,2]
[323681368,1714162245275,-1663.08,0.00010958,2]
[323681369,1714162245284,-500.0,0.00010958,2]
[323681370,1714162245294,-1627.0,0.00010958,2]
[323681371,1714162245303,-500.0,0.00010958,2]
[323681372,1714162245313,-500.0,0.00010958,2]
[323681373,1714162245323,-500.0,0.00010958,2]
[323681374,1714162245333,-500.0,0.00010958,2]
[323681375,1714162245342,-2125.26,0.00010958,2]
[323681376,1714162245352,-500.0,0.00010958,2]
[323681377,1714162245361,-150.64843487,0.00010958,2]
[323681378,1714162245370,-877.61,0.00010958,2]
[323681379,1714162245378,-500.0,0.00010958,2]
[323681380,1714162245388,-500.0,0.00010958,2]
[323681381,1714162245397,-500.0,0.00010958,2]
[323681382,1714162245406,-500.0,0.00010958,2]
[323681383,1714162245415,-500.0,0.00010958,2]
[323681384,1714162245425,-500.0,0.00010958,2]
[323681385,1714162245434,-679.84,0.00010958,2]
[323681386,1714162245443,-1791.19,0.00010958,2]
[323681387,1714162245452,-500.0,0.00010958,2]
[323681388,1714162245462,-500.0,0.00010958,2]
[323681389,1714162245471,-1823.01,0.00010958,2]
[323681390,1714162245479,-500.0,0.00010958,2]
[323681391,1714162245489,-6618.25,0.00010958,2]
[323681392,1714162245498,-500.0,0.00010958,2]
[323681393,1714162245507,-1559.34,0.00010958,2]
[323681394,1714162245517,-3664.28,0.00010958,2]
[323681395,1714162245526,-500.0,0.00010958,2]
[323681396,1714162245535,-2464.74,0.00010958,2]
[323681397,1714162245544,-1371.64,0.00010958,2]
[323681398,1714162245554,-500.0,0.00010958,2]
[323681399,1714162245563,-502.13962029,0.00010958,2]
[323681400,1714162245573,-500.0,0.00010958,2]
[323681401,1714162245582,-500.0,0.00010958,2]
[323681402,1714162245591,-500.0,0.00010958,2]
[323681403,1714162245600,-5397.16,0.00010958,2]
[323681404,1714162245610,-1185.69,0.00010958,2]
[323681405,1714162245619,-500.0,0.00010958,2]
[323681406,1714162245630,-512.62413243,0.00010958,2]
[323681407,1714162245641,-500.0,0.00010958,2]
[323681408,1714162245650,-2567.83,0.00010958,2]
[323681409,1714162245660,-500.0,0.00010958,2]
[323681410,1714162245669,-500.0,0.00010958,2]
[323681412,1714162245679,-2186.92,0.00010958,2]
[323681414,1714162245690,-1045.11,0.00010958,2]
[323681415,1714162245699,-500.0,0.00010958,2]
[323681416,1714162245709,-500.0,0.00010958,2]
[323681417,1714162245718,-500.0,0.00010958,2]
[323681418,1714162245728,-500.81445411,0.00010958,2]
[323681419,1714162245737,-2177.61,0.00010958,2]
[323681420,1714162245746,-500.0,0.00010958,2]
[323681421,1714162245756,-500.0,0.00010958,2]
[323681422,1714162245765,-1647.86,0.00010958,2]
[323681423,1714162245774,-500.0,0.00010958,2]
[323681424,1714162245783,-500.0,0.00010958,2]
[323681425,1714162245793,-500.0,0.00010958,2]
[323681426,1714162245802,-500.0,0.00010958,2]
[323681427,1714162245811,-500.0,0.00010958,2]
[323681428,1714162245821,-500.0,0.00010958,2]
[323681429,1714162245830,-1120.9,0.00010958,2]
[323681430,1714162245839,-500.0,0.00010958,2]
[323681431,1714162245850,-500.0,0.00010958,2]
[323681432,1714162245860,-2543.46,0.00010958,2]
[323681433,1714162245871,-860.94,0.00010958,2]
[323681434,1714162245880,-500.0,0.00010958,2]
[323681435,1714162245890,-756.69,0.00010958,2]
[323681437,1714162245899,-856.16,0.00010958,2]
[323681439,1714162245909,-500.0,0.00010958,2]
[323681441,1714162245919,-1909.76,0.00010958,2]
[323681443,1714162245928,-500.0,0.00010958,2]
[323681445,1714162245937,-500.0,0.00010958,2]
[323681446,1714162245947,-500.0,0.00010958,2]
[323681447,1714162245956,-623.27,0.00010958,2]
[323681448,1714162245966,-500.0,0.00010958,2]
[323681449,1714162245975,-695.77,0.00010958,2]
[323681450,1714162245984,-2031.44,0.00010958,2]
[323681451,1714162245994,-500.0,0.00010958,2]
[323681452,1714162246003,-500.0,0.00010958,2]
[323681453,1714162246013,-500.0,0.00010958,2]
[323681454,1714162246023,-500.0,0.00010958,2]
[323681455,1714162246033,-2323.13,0.00010958,2]
[323681456,1714162246042,-500.0,0.00010958,2]
[323681457,1714162246051,-500.0,0.00010958,2]
[323681458,1714162246061,-500.0,0.00010958,2]
[323681459,1714162246070,-500.0,0.00010958,2]
[323681460,1714162246079,-4300.5,0.00010958,2]
[323681461,1714162246088,-500.0,0.00010958,2]
[323681462,1714162246098,-500.0,0.00010958,2]
[323681463,1714162246107,-771.53,0.00010958,2]
[323681464,1714162246116,-500.0,0.00010958,2]
[323681465,1714162246126,-500.0,0.00010958,2]
[323681466,1714162246137,-500.4326791,0.00010958,2]
[323681467,1714162246146,-500.0,0.00010958,2]
[323681468,1714162246156,-500.0,0.00010958,2]
[323681469,1714162246165,-1390.66,0.00010958,2]
[323681470,1714162246174,-500.0,0.00010958,2]
[323681471,1714162246183,-500.0,0.00010958,2]
[323681472,1714162246193,-322.51858577,0.00010958,2]
[323681473,1714162246203,-500.0,0.00010958,2]
[323681474,1714162246213,-500.0,0.00010958,2]
[323681475,1714162246222,-500.0,0.00010958,2]
[323681476,1714162246232,-500.0,0.00010958,2]
[323681477,1714162246245,-500.0,0.00010958,2]
[323681478,1714162246254,-500.0,0.00010958,2]
[323681479,1714162246265,-1555.66,0.00010958,2]
[323681480,1714162246274,-928.5,0.00010958,2]
[323681481,1714162246285,-500.0,0.00010958,2]
[323681482,1714162246294,-500.0,0.00010958,2]
[323681483,1714162246304,-2963.8,0.00010958,2]
[323681484,1714162246313,-2910.13,0.00010958,2]
[323681485,1714162246323,-959.86,0.00010958,2]
[323681486,1714162246333,-500.0,0.00010958,2]
[323681488,1714162246504,-550.85667913,0.00010958,2]
[323681489,1714162246524,-832.91,0.00010958,2]
[323681490,1714162246534,-500.0,0.00010958,2]
[323681491,1714162246545,-5428.99,0.00010958,2]
[323681492,1714162246555,-500.0,0.00010958,2]
[323681493,1714162246566,-500.0,0.00010958,2]
[323681494,1714162246577,-648.41420551,0.00010958,2]
[323681495,1714162246587,-500.0,0.00010958,2]
[323681496,1714162246597,-500.0,0.00010958,2]
[323681497,1714162246608,-500.0,0.00010958,2]
[323681498,1714162246618,-500.0,0.00010958,2]
[323681499,1714162246628,-501.21491854,0.00010958,2]
[323681500,1714162246639,-500.0,0.00010958,2]
[323681501,1714162246649,-500.0,0.00010958,2]
[323681502,1714162246659,-500.0,0.00010958,2]
[323681503,1714162246669,-500.0,0.00010958,2]
[323681504,1714162246681,-950.3,0.00010958,2]
[323681505,1714162246692,-500.0,0.00010958,2]
[323681506,1714162246704,-1256.0,0.00010958,2]
[323681507,1714162246718,-500.0,0.00010958,2]
[323681508,1714162246729,-500.0,0.00010958,2]
[323681509,1714162246741,-500.0,0.00010958,2]
[323681510,1714162246752,-500.0,0.00010958,2]
[323681511,1714162246764,-500.0,0.00010958,2]
[323681512,1714162246775,-2665.03,0.00010958,2]
[323681513,1714162246785,-680.43,0.00010958,2]
[323681514,1714162246795,-1859.46,0.00010958,2]
[323681515,1714162246805,-500.0,0.00010958,2]
[323681516,1714162246815,-2028.62,0.00010958,2]
[323681517,1714162246824,-4424.38,0.00010958,2]
[323681518,1714162246835,-500.0,0.00010958,2]
[323681519,1714162246845,-500.0,0.00010958,2]
[323681520,1714162246855,-1199.5,0.00010958,2]
[323681521,1714162246865,-500.0,0.00010958,2]
[323681522,1714162246875,-517.6993529,0.00010958,2]
[323681523,1714162246885,-914.3,0.00010958,2]
[323681524,1714162246895,-500.0,0.00010958,2]
[323681525,1714162246904,-751.03,0.00010958,2]
[323681526,1714162246914,-500.0,0.00010958,2]
[323681527,1714162246925,-930.83,0.00010958,2]
[323681528,1714162246937,-500.0,0.00010958,2]
[323681529,1714162246946,-500.0,0.00010958,2]
[323681530,1714162246957,-500.0,0.00010958,2]
[323681531,1714162246967,-500.0,0.00010958,2]
[323681532,1714162246977,-500.0,0.00010958,2]
[323681533,1714162246988,-500.0,0.00010958,2]
[323681534,1714162246998,-500.0,0.00010958,2]
[323681535,1714162247006,-500.0,0.00010958,2]
[323681536,1714162247017,-500.0,0.00010958,2]
[323681537,1714162247027,-500.0,0.00010958,2]
[323681538,1714162247037,-500.0,0.00010958,2]
[323681539,1714162247047,-500.0,0.00010958,2]
[323681540,1714162247057,-2376.63,0.00010958,2]
[323681541,1714162247067,-500.0,0.00010958,2]
[323681542,1714162247077,-500.0,0.00010958,2]
[323681543,1714162247086,-500.0,0.00010958,2]
[323681544,1714162247096,-3763.87,0.00010958,2]
[323681545,1714162247106,-500.0,0.00010958,2]
[323681546,1714162247117,-500.0,0.00010958,2]
[323681547,1714162247127,-500.0,0.00010958,2]
[323681548,1714162247137,-500.0,0.00010958,2]
[323681549,1714162247146,-500.0,0.00010958,2]
[323681550,1714162247155,-500.0,0.00010958,2]
[323681551,1714162247165,-500.0,0.00010958,2]
[323681552,1714162247175,-500.0,0.00010958,2]
[323681553,1714162247184,-500.0,0.00010958,2]
[323681554,1714162247194,-2091.24,0.00010958,2]
[323681555,1714162247204,-500.0,0.00010958,2]
[323681556,1714162247215,-500.0,0.00010958,2]
[323681557,1714162247226,-500.0,0.00010958,2]
[323681558,1714162247239,-1280.93,0.00010958,2]
[323681559,1714162247249,-500.0,0.00010958,2]
[323681560,1714162247259,-524.0,0.00010958,2]
[323681561,1714162247269,-500.0,0.00010958,2]
[323681562,1714162247281,-1201.85,0.00010958,2]
[323681563,1714162247291,-500.0,0.00010958,2]
[323681564,1714162247301,-3749.4,0.00010958,2]
[323681565,1714162247312,-1278.71,0.00010958,2]
[323681566,1714162247322,-500.0,0.00010958,2]
[323681567,1714162247333,-500.0,0.00010958,2]
[323681568,1714162247344,-2680.67,0.00010958,2]
[323681569,1714162247355,-500.0,0.00010958,2]
[323681570,1714162247366,-500.0,0.00010958,2]
[323681571,1714162247376,-5272.03,0.00010958,2]
[323681572,1714162247386,-500.0,0.00010958,2]
[323681573,1714162247395,-500.0,0.00010958,2]
[323681574,1714162247404,-500.0,0.00010958,2]
[323681575,1714162247414,-500.0,0.00010958,2]
[323681576,1714162247424,-500.0,0.00010958,2]
[323681577,1714162247434,-500.0,0.00010958,2]
[323681578,1714162247444,-500.0,0.00010958,2]
[323681579,1714162247456,-8016.96,0.00010958,2]
[323681580,1714162247467,-2212.0,0.00010958,2]
[323681581,1714162247477,-500.0,0.00010958,2]
[323681582,1714162247488,-500.0,0.00010958,2]
[323681583,1714162247498,-500.0,0.00010958,2]
[323681584,1714162247508,-408.36793413,0.00010958,2]
[323681585,1714162247518,-567.82,0.00010959,2]
[323681586,1714162247527,-2000.0,0.00010959,3]
[323681587,1714162247538,-170.11517313,0.00010995,2]
[323681588,1714162247549,-43370.034834,0.00011,2]
[323681589,1714162247559,-2750.0,0.00011,3]
[323681590,1714162247569,-188.22313016,0.00011,2]
[323681591,1714162247579,-1911.68445066,0.00011044,2]
[323681592,1714162247590,-500.0,0.00011131,2]
[323681593,1714162247600,-170.11517313,0.00011132,2]
[323681594,1714162247610,-23113.10975861,0.00011135,2]
[323681595,1714162247619,-500.0,0.00011136,2]
[323681596,1714162247629,-305.39391058,0.0001122,2]
[323681597,1714162247639,-226.20204184,0.0001122,2]
[323681598,1714162247650,-1056.30278722,0.00011221,2]
[323681599,1714162247660,-155.0,0.00011221,2]
[323681600,1714162247669,-236.4795796,0.00011221,2]
[323681601,1714162247679,-194.36220808,0.00011221,2]
[323681602,1714162247690,-164.45880512,0.00011221,2]
[323681603,1714162247699,-188.22313016,0.00011222,2]
[323681604,1714162247713,-1911.68445066,0.00011229,2]
[323681605,1714162247724,-297.61460704,0.0001123,2]
[323681606,1714162247735,-155.0,0.0001123,2]
[323681607,1714162247750,-641.61516885,0.0001123,2]
[323681608,1714162247759,-162.10190653,0.0001123,2]
[323681609,1714162247769,-265.50698915,0.0001123,2]
[323681610,1714162247780,-155.84235863,0.0001123,2]
[323681611,1714162247790,-462.87150427,0.00011231,2]
[323681612,1714162247802,-577.39323317,0.00011231,2]
[323681613,1714162247812,-1208.19,0.00011231,2]
[323681614,1714162247822,-1208.19,0.00011231,2]
[323681615,1714162247832,-500.0,0.00011232,2]
[323681616,1714162247841,-500.0,0.00011232,2]
[323681617,1714162247851,-500.0,0.00011232,2]
[323681618,1714162247862,-500.0,0.00011232,2]
[323681619,1714162247873,-500.0,0.00011232,2]
[323681620,1714162247884,-500.0,0.00011232,2]
[323681621,1714162247895,-500.0,0.00011232,2]
[323681622,1714162247905,-500.0,0.00011232,2]
[323681623,1714162247918,-500.0,0.00011232,2]
[323681624,1714162247932,-500.0,0.00011232,2]
[323681625,1714162247945,-500.0,0.00011232,2]
[323681626,1714162247957,-500.0,0.00011232,2]
[323681627,1714162247968,-607.5,0.00011232,2]
[323681628,1714162247978,-500.0,0.00011232,2]
[323681629,1714162247988,-500.0,0.00011232,2]
[323681630,1714162247998,-500.0,0.00011232,2]
[323681631,1714162248011,-500.0,0.00011232,2]
[323681632,1714162248021,-500.0,0.00011232,2]
[323681633,1714162248031,-440.6,0.00011232,2]
[323681634,1714162248043,-500.0,0.00011232,2]
[323681635,1714162248053,-500.0,0.00011232,2]
[323681636,1714162248063,-515.77,0.00011232,2]
[323681637,1714162248073,-500.0,0.00011232,2]
[323681638,1714162248084,-500.0,0.00011232,2]
[323681639,1714162248094,-679.19,0.00011232,2]
[323681640,1714162248104,-500.0,0.00011232,2]
[323681641,1714162248114,-681.85,0.00011232,2]
[323681642,1714162248124,-657.87,0.00011232,2]
[323681643,1714162248134,-1062.81,0.00011232,2]
[323681644,1714162248144,-561.63238684,0.00011232,2]
[323681645,1714162248153,-500.0,0.00011232,2]
[323681646,1714162248162,-500.0,0.00011232,2]
[323681647,1714162248172,-500.0,0.00011232,2]
[323681648,1714162248183,-378.20782051,0.00011232,2]
[323681649,1714162248193,-500.0,0.00011232,2]
[323681650,1714162248204,-500.0,0.00011232,2]
[323681651,1714162248213,-637.72,0.00011232,2]
[323681652,1714162248224,-500.0,0.00011232,2]
[323681653,1714162248237,-500.0,0.00011232,2]
[323681654,1714162248247,-500.0,0.00011232,2]
[323681655,1714162248258,-500.0,0.00011232,2]
[323681656,1714162248269,-500.0,0.00011232,2]
[323681657,1714162248279,-500.0,0.00011232,2]
[323681658,1714162248290,-500.0,0.00011232,2]
[323681659,1714162248300,-1145.45,0.00011232,2]
[323681660,1714162248312,-500.0,0.00011232,2]
[323681661,1714162248321,-500.0,0.00011232,2]
[323681662,1714162248331,-500.0,0.00011232,2]
[323681663,1714162248343,-556.03,0.00011232,2]
[323681664,1714162248354,-500.0,0.00011232,2]
[323681665,1714162248364,-500.0,0.00011232,2]
[323681666,1714162248375,-500.0,0.00011232,2]
[323681667,1714162248384,-1468.22,0.00011232,2]
[323681668,1714162248394,-957.2,0.00011232,2]
[323681669,1714162248404,-500.0,0.00011232,2]
[323681670,1714162248413,-666.33,0.00011232,2]